fUST/lending_fUST_20240918
["ID","MTS","AMOUNT","RATE_DAILY","PERIOD"]
[338409185,1726603838739,-161.14,0.000241,31]
[338409186,1726603838749,-161.14,0.000241,31]
[338409187,1726603838758,-161.14,0.000241,31]
[338409188,1726603838768,-161.14,0.000241,31]
[338409189,1726603838777,-161.14,0.000241,31]
[338409190,1726603838787,-161.14,0.000241,31]
[338409191,1726603838796,-161.14,0.000241,31]
[338409192,1726603838806,-161.14,0.000241,31]
[338409193,1726603838815,-161.14,0.000241,31]
[338409194,1726603838825,-161.14,0.000241,31]
[338409195,1726603838834,-161.14,0.000241,31]
[338409196,1726603838844,-452.0,0.00024164,2]
[338409197,1726603838853,-302.30477158,0.0002424,2]
[338409198,1726603838862,-302.30477158,0.0002424,2]
[338409199,1726603838872,-1076.0,0.00024329,2]
[338409200,1726603838882,-166.666666,0.00024428,2]
[338409201,1726603838896,-302.30477158,0.0002448,2]
[338409202,1726603838906,-302.30477158,0.0002448,2]
[338409203,1726603838915,-166.666669,0.00024554,2]
[338409204,1726603838926,-153.0,0.00024555,2]
[338409205,1726603838937,-153.0,0.00024555,2]
[338409206,1726603838948,-153.0,0.00024555,2]
[338409207,1726603838959,-200.0,0.00024658,15]
[338409208,1726603838969,-380.0,0.00024658,2]
[338409209,1726603838979,-302.30477158,0.0002472,2]
[338409210,1726603838991,-302.30477158,0.0002472,2]
[338409211,1726603839002,-1000.0,0.0002487,2]
[338409212,1726603839014,-161.14,0.000249,31]
[338409213,1726603839025,-161.14,0.000249,31]
[338409214,1726603839034,-161.14,0.000249,31]
[338409215,1726603839044,-161.14,0.000249,31]
[338409216,1726603839055,-161.14,0.000249,31]
[338409217,1726603839064,-161.14,0.000249,31]
[338409218,1726603839074,-161.14,0.000249,31]
[338409219,1726603839085,-161.14,0.000249,31]
[338409220,1726603839094,-161.14,0.000249,31]
[338409221,1726603839105,-161.14,0.000249,31]
[338409222,1726603839115,-161.14,0.000249,31]
[338409223,1726603839126,-161.14,0.000249,31]
[338409224,1726603839136,-161.14,0.000249,31]
[338409225,1726603839146,-161.14,0.000249,31]
[338409226,1726603839156,-161.14,0.000249,31]
[338409227,1726603839166,-161.14,0.000249,31]
[338409228,1726603839177,-161.14,0.000249,31]
[338409229,1726603839188,-161.14,0.000249,31]
[338409230,1726603839199,-161.14,0.000249,31]
[338409231,1726603839211,-161.14,0.000249,31]
[338409232,1726603839223,-161.14,0.000249,31]
[338409233,1726603839233,-161.14,0.000249,31]
[338409234,1726603839242,-161.14,0.000249,31]
[338409235,1726603839251,-161.14,0.000249,31]
[338409236,1726603839262,-817.74894114,0.000249,2]
[338409237,1726603839273,-302.30477158,0.0002496,2]
[338409238,1726603839284,-302.30477158,0.0002496,2]
[338409239,1726603839294,-65620.3,0.0002497,3]
[338409240,1726603839308,-51487.0919499,0.0002497,3]
[338409241,1726603839318,-500.0,0.00024973,2]
[338409242,1726603839327,-500.0,0.00024973,2]
[338409243,1726603839336,-500.0,0.00024973,2]
[338409244,1726603839345,-500.0,0.00024979,2]
[338409245,1726603839354,-185.44989066,0.00024979,2]
[338409246,1726603839363,-69638.3645162,0.0002498,3]
[338409247,1726603839373,-77230.6379249,0.0002498,3]
[338409248,1726603839382,-5086.66,0.00024989,2]
[338409249,1726603839392,-591.39931461,0.0002499,5]
[338409250,1726603839401,-67031.02586247,0.0002499,3]
[338409307,1726603843449,-72245.70316953,0.0002499,3]
[338409309,1726603843458,-31052.42053245,0.0002499,3]
[338409361,1726604846120,-454.74193649,0.00019519,2]
[338409368,1726604945186,-155.0,0.00018,30]
[338409369,1726604945207,-45.25806351,0.00019519,2]
[338409370,1726604945229,-225.53,0.000202,2]
[338409371,1726604945252,-500.0,0.00020495,2]
[338409372,1726604945274,-150.0,0.00021,2]
[338409373,1726604945294,-479.792,0.00021831,2]
[338409374,1726604945315,-150.0,0.00021831,2]
[338409375,1726604945335,-1076.0,0.00021831,2]
[338409376,1726604945359,-154.11553567,0.00021957,2]
[338409377,1726604945380,-211.0,0.00022,2]
[338409378,1726604945401,-211.0,0.00022192,2]
[338409414,1726605032600,-166.666666,0.00022547,2]
[338409415,1726605032610,-163.449493,0.00022789,2]
[338409416,1726605032620,-226.6666706,0.00022922,2]
[338409417,1726605032629,-211.0,0.00023014,2]
[338409418,1726605032639,-166.666666,0.00023161,2]
[338409420,1726605032648,-166.666666,0.00023776,2]
[338409423,1726605032657,-302.27461649,0.00024,2]
[338409425,1726605032667,-448.3382894,0.00024109,2]
[338409427,1726605032676,-310.9970354,0.00024109,2]
[338409429,1726605032685,-214.0,0.00024164,2]
[338409431,1726605032695,-302.27461649,0.0002424,2]
[338409433,1726605032704,-417.3803436,0.00024307,2]
[338409436,1726605032714,-166.666666,0.00024391,2]
[338409438,1726605032723,-302.27461649,0.0002448,2]
[338409441,1726605032732,-300.0,0.00024529,2]
[338409444,1726605032741,-300.0,0.00024529,2]
[338409446,1726605032755,-153.0,0.0002453,2]
[338409448,1726605032764,-153.0,0.0002453,2]
[338409449,1726605032773,-153.0,0.0002453,2]
[338409451,1726605032783,-153.0,0.0002453,2]
[338409453,1726605032793,-153.0,0.0002453,2]
[338409455,1726605032802,-380.0,0.00024658,2]
[338409457,1726605032812,-200.0,0.00024658,15]
[338409459,1726605032826,-121.87183819,0.0002472,2]
[338409461,1726605032838,-180.4027783,0.0002472,2]
[338409463,1726605032848,-153.0,0.00024825,2]
[338409464,1726605032858,-153.0,0.00024825,2]
[338409465,1726605032867,-135.71106753,0.00024829,2]
[338409481,1726605038657,-170.28893247,0.00024829,2]
[338409483,1726605038667,-1076.0,0.00024831,2]
[338409484,1726605038676,-1000.0,0.0002488,2]
[338409485,1726605038686,-11780.31644384,0.0002489,3]
[338409486,1726605038696,-152.86,0.000249,31]
[338409487,1726605038705,-152.86,0.000249,31]
[338409488,1726605038715,-152.86,0.000249,31]
[338409489,1726605038724,-152.86,0.000249,31]
[338409490,1726605038735,-152.86,0.000249,31]
[338409491,1726605038744,-152.86,0.000249,31]
[338409492,1726605038754,-152.86,0.000249,31]
[338409493,1726605038766,-152.86,0.000249,31]
[338409494,1726605038775,-152.86,0.000249,31]
[338409495,1726605038785,-152.86,0.000249,31]
[338409496,1726605038794,-152.86,0.000249,31]
[338409497,1726605038803,-152.86,0.000249,31]
[338409498,1726605038814,-152.86,0.000249,31]
[338409499,1726605038823,-817.74894114,0.000249,2]
[338409500,1726605038833,-289.0,0.00024932,2]
[338409501,1726605038843,-65620.3,0.0002494,3]
[338409502,1726605038854,-54683.59,0.0002494,3]
[338409503,1726605038863,-24190.9249483,0.00024951,3]
[338409504,1726605038873,-302.27461649,0.0002496,2]
[338409505,1726605038882,-24190.9249483,0.0002496,3]
[338409506,1726605038891,-48381.8498967,0.0002497,3]
[338409507,1726605038901,-500.0,0.00024973,2]
[338409508,1726605038911,-500.0,0.00024973,2]
[338409510,1726605038920,-500.0,0.00024973,2]
[338409511,1726605038930,-500.0,0.00024973,2]
[338409512,1726605038939,-500.0,0.00024979,2]
[338409513,1726605038949,-185.44989066,0.00024979,2]
[338409514,1726605038958,-5086.66,0.0002498,2]
[338409515,1726605038968,-111604.33128962,0.0002498,3]
[338409516,1726605038980,-1210.00000001,0.0002498,3]
[338409563,1726605043551,-500.0,0.00024973,2]
[338409564,1726605043561,-5167.38530477,0.0002498,3]
[338409589,1726605103935,118.4721107,0.00022209,2]
[338409590,1726605103956,151.5766,0.00022209,2]
[338409591,1726605103976,181.26046378,0.00022209,2]
[338409592,1726605103997,262.36061944,0.00022209,2]
[338409608,1726606043130,-294.54228394,0.00019519,2]
[338409609,1726606043154,-202.98,0.000202,2]
[338409610,1726606043174,-147.95190911,0.00022209,2]
[338409615,1726606145189,-352.04809089,0.00022209,2]
[338409616,1726606145210,-1076.0,0.00022209,2]
[338409617,1726606153227,182.68,0.000203,2]
[338409679,1726606237862,-154.11553567,0.00022855,2]
[338409680,1726606237873,-166.666666,0.00022914,2]
[338409681,1726606237883,-240.94342602,0.00023262,2]
[338409682,1726606237894,-300.0,0.00023349,2]
[338409683,1726606237907,-300.0,0.00023349,2]
[338409685,1726606237918,-18888.0346785,0.0002335,2]
[338409686,1726606237929,-166.666666,0.00023539,2]
[338409687,1726606237940,-302.27461649,0.00024,2]
[338409688,1726606237950,-302.30477158,0.00024,2]
[338409689,1726606237961,-166.666666,0.00024164,2]
[338409690,1726606237972,-153.0,0.00024205,2]
[338409691,1726606237982,-153.0,0.00024205,2]
[338409692,1726606237992,-153.0,0.00024205,2]
[338409693,1726606238001,-153.0,0.00024205,2]
[338409694,1726606238010,-153.0,0.00024205,2]
[338409695,1726606238019,-153.0,0.00024205,2]
[338409696,1726606238028,-153.0,0.00024205,2]
[338409697,1726606238039,-153.0,0.00024205,2]
[338409698,1726606238050,-153.0,0.00024205,2]
[338409699,1726606238060,-306.0,0.00024205,2]
[338409700,1726606238070,-302.27461649,0.0002424,2]
[338409701,1726606238079,-302.30477158,0.0002424,2]
[338409702,1726606238089,-302.27461649,0.0002448,2]
[338409703,1726606238101,-302.30477158,0.0002448,2]
[338409704,1726606238113,-380.0,0.00024658,2]
[338409705,1726606238124,-200.0,0.00024658,15]
[338409706,1726606238134,-302.27461649,0.0002472,2]
[338409707,1726606238144,-302.30477158,0.0002472,2]
[338409708,1726606238154,-166.666666,0.00024788,2]
[338409709,1726606238163,-1000.0,0.0002487,2]
[338409710,1726606238173,-152.88,0.000249,31]
[338409711,1726606238184,-152.88,0.000249,31]
[338409712,1726606238194,-152.88,0.000249,31]
[338409713,1726606238204,-152.88,0.000249,31]
[338409714,1726606238214,-152.88,0.000249,31]
[338409715,1726606238224,-152.88,0.000249,31]
[338409716,1726606238233,-152.88,0.000249,31]
[338409717,1726606238242,-152.88,0.000249,31]
[338409718,1726606238251,-152.88,0.000249,31]
[338409719,1726606238261,-152.88,0.000249,31]
[338409720,1726606238271,-152.88,0.000249,31]
[338409721,1726606238281,-735.97404708,0.000249,2]
[338409722,1726606238291,-26373.91,0.00024959,3]
[338409723,1726606238301,-302.27461649,0.0002496,2]
[338409724,1726606238310,-154.67,0.0002496,3]
[338409725,1726606238323,-302.30477158,0.0002496,2]
[338409726,1726606238333,-41178.47,0.0002496,3]
[338409727,1726606238343,-20630.7754895,0.0002497,3]
[338409728,1726606238354,-36555.8085776,0.0002497,3]
[338409729,1726606238365,-500.0,0.00024973,2]
[338409730,1726606238374,-500.0,0.00024973,2]
[338409731,1726606238386,-500.0,0.00024973,2]
[338409732,1726606238397,-500.0,0.00024973,2]
[338409733,1726606238406,-10315.3877448,0.00024979,3]
[338409734,1726606238416,-18277.9042888,0.00024979,3]
[338409735,1726606238425,-10315.3877448,0.0002498,3]
[338409736,1726606238434,-18277.9042888,0.0002498,3]
[338409737,1726606238443,-3108.88616415,0.00024989,2]
[338409738,1726606238463,-1794.72,0.00024989,2]
[338409795,1726606245942,-183.05383585,0.00024989,2]
[338409796,1726606245952,-500.0,0.00024989,2]
[338409797,1726606245961,-153.62178987,0.00024989,2]
[338409798,1726606245970,-185.44989066,0.00024989,2]
[338409799,1726606245979,-412.59213474,0.0002499,5]
[338409800,1726606245996,-178.80717987,0.0002499,5]
[338409801,1726606246005,-774.20511813,0.0002499,3]
[338409802,1726606246031,-16284.39384042,0.0002499,3]
[338409820,1726607197155,-164.42,0.000205,2]
[338409821,1726607197179,-47.81608048,0.0002221,2]
[338409823,1726607235110,-252.36857392,0.0002221,2]
[338409826,1726607345160,-339.0,0.00022,2]
[338409827,1726607345182,-339.0,0.00022192,2]
[338409828,1726607345205,-775.8153456,0.0002221,2]
[338409852,1726607371985,173.03,0.000205,2]
[338409858,1726607413999,53.4723904,0.00022,2]
[338409870,1726607431946,-200.5276096,0.00022,2]
[338409871,1726607431955,-254.0,0.00022192,2]
[338409872,1726607431965,-154.11553568,0.00022857,2]
[338409873,1726607431974,-166.666666,0.00022975,2]
[338409874,1726607431983,-254.0,0.00023014,2]
[338409875,1726607431992,-300.0,0.00023324,2]
[338409876,1726607432002,-61.53254841,0.00023324,2]
[338409884,1726607437963,-238.46745159,0.00023324,2]
[338409885,1726607437973,-12237.0610071,0.00023325,2]
[338409886,1726607437983,-177.1725846,0.00023598,2]
[338409887,1726607437992,-166.666666,0.00023602,2]
[338409888,1726607438003,-163.449493,0.00023706,2]
[338409889,1726607438012,-302.33493269,0.00024,2]
[338409890,1726607438022,-261.0,0.00024164,2]
[338409891,1726607438031,-306.0,0.00024178,2]
[338409892,1726607438041,-694.2790163,0.00024212,30]
[338409893,1726607438050,-166.666666,0.00024228,2]
[338409894,1726607438060,-302.33493269,0.0002424,2]
[338409895,1726607438069,-302.33493269,0.0002448,2]
[338409896,1726607438079,-380.0,0.00024658,2]
[338409897,1726607438089,-302.33493269,0.0002472,2]
[338409898,1726607438098,-166.666666,0.00024855,2]
[338409899,1726607438108,-1000.0,0.0002488,2]
[338409900,1726607438117,-4039.0,0.000249,2]
[338409901,1726607438127,-152.9,0.000249,31]
[338409902,1726607438136,-152.9,0.000249,31]
[338409903,1726607438145,-152.9,0.000249,31]
[338409904,1726607438155,-152.9,0.000249,31]
[338409905,1726607438165,-152.9,0.000249,31]
[338409906,1726607438174,-152.9,0.000249,31]
[338409907,1726607438183,-152.9,0.000249,31]
[338409908,1726607438193,-152.9,0.000249,31]
[338409909,1726607438203,-152.9,0.000249,31]
[338409910,1726607438212,-152.9,0.000249,31]
[338409911,1726607438222,-152.9,0.000249,31]
[338409912,1726607438232,-152.9,0.000249,31]
[338409913,1726607438241,-152.9,0.000249,31]
[338409914,1726607438251,-152.9,0.000249,31]
[338409915,1726607438260,-662.37664239,0.000249,2]
[338409916,1726607438270,-603.0,0.00024932,2]
[338409917,1726607438280,-37978.43,0.0002495,3]
[338409918,1726607438291,-21531.3920351,0.0002496,3]
[338409919,1726607438301,-17364.0090744,0.0002496,3]
[338409920,1726607438311,-302.33493269,0.0002496,2]
[338409921,1726607438320,-45574.12,0.0002496,3]
[338409922,1726607438329,-154.67,0.0002497,3]
[338409923,1726607438339,-21531.3920351,0.0002497,3]
[338409924,1726607438349,-17364.0090744,0.0002497,3]
[338409925,1726607438358,-500.0,0.00024973,2]
[338409926,1726607438368,-500.0,0.00024973,2]
[338409927,1726607438377,-381.58061109,0.00024973,2]
[338409957,1726607440058,-302.33493269,0.00024,2]
[338409958,1726607440068,-302.33493269,0.0002424,2]
[338409960,1726607440077,-302.33493269,0.0002448,2]
[338409961,1726607440087,-302.33493269,0.0002472,2]
[338409962,1726607440097,-10117.62136093,0.0002495,3]
[338409973,1726607442969,-563.04860029,0.0002486,2]
[338409974,1726607443007,-23.58178672,0.0002486,2]
[338410011,1726607446019,-817.05343908,0.0002486,2]
[338410012,1726607446029,-21531.06863907,0.0002495,3]
[338410013,1726607446039,-358.82402163,0.0002496,2]
[338410014,1726607446047,-118.41938891,0.00024973,2]
[338410015,1726607446057,-173.37316285,0.00024979,2]
[338410016,1726607446066,-500.0,0.00024979,2]
[338410017,1726607446075,-273.57916232,0.00024979,2]
[338410018,1726607446085,-151.0,0.0002498,7]
[338410019,1726607446094,-151.0,0.0002498,7]
[338410020,1726607446105,-3842.941084,0.0002498,7]
[338410021,1726607446115,-3842.941084,0.0002498,7]
[338410022,1726607446124,-295.69965731,0.0002498,5]
[338410023,1726607446134,-64594.1761054,0.0002498,3]
[338410024,1726607446144,-52092.0272232,0.0002498,3]
[338410025,1726607446153,-253.81561284,0.00024988,2]
[338410026,1726607446162,-5004.25,0.00024989,2]
[338410027,1726607446171,-151.0,0.00024989,7]
[338410028,1726607446181,-3842.941084,0.00024989,7]
[338410029,1726607446190,-3842.941084,0.00024989,7]
[338410030,1726607446199,-151.0,0.0002499,7]
[338410031,1726607446208,-151.0,0.0002499,7]
[338410032,1726607446217,-151.0,0.0002499,7]
[338410033,1726607446226,-151.0,0.0002499,7]
[338410034,1726607446235,-151.0,0.0002499,7]
[338410035,1726607446244,-151.0,0.0002499,7]
[338410036,1726607446254,-93873.01389706,0.0002499,3]
[338410039,1726607541328,181.888,0.0002051,30]
[338410066,1726608425444,-454.74193649,0.00019519,2]
[338410067,1726608425466,-155.73,0.000205,2]
[338410068,1726608425488,-300.0,0.00020509,2]
[338410069,1726608425511,-300.0,0.00020509,2]
[338410070,1726608425535,-119.29072546,0.0002051,30]
[338410078,1726608547117,-155.0,0.00018,30]
[338410079,1726608554118,-163.449493,0.00020429,2]
[338410080,1726608554142,-300.0,0.00020509,2]
[338410081,1726608554163,-198.82127454,0.0002051,30]
[338410082,1726608554186,-959.42727832,0.0002051,30]
[338410083,1726608554207,-715.79089337,0.0002051,30]
[338410084,1726608554228,-600.0,0.0002051,30]
[338410085,1726608554513,-250.0,0.00020628,2]
[338410086,1726608554536,-250.0,0.00020685,2]
[338410087,1726608554558,-500.0,0.000207,2]
[338410088,1726608554580,-24890.0,0.00020703,2]
[338410089,1726608554602,-250.0,0.00020742,2]
[338410090,1726608554623,-1423.5960173,0.00020754,2]
[338410091,1726608554645,-250.0,0.00020766,2]
[338410092,1726608554666,-250.0,0.00020798,2]
[338410093,1726608554688,-250.0,0.00020855,2]
[338410094,1726608554710,-250.0,0.00020911,2]
[338410095,1726608554734,-250.0,0.00020968,2]
[338410096,1726608554760,-273.358978,0.00021,2]
[338410097,1726608554781,-250.0,0.00021024,2]
[338410098,1726608554803,-250.0,0.00021081,2]
[338410099,1726608554825,-1392.56869563,0.00021111,2]
[338410100,1726608554847,-250.0,0.00021138,2]
[338410101,1726608554868,-250.0,0.00021194,2]
[338410102,1726608554895,-250.0,0.00021251,2]
[338410103,1726608554917,-250.0,0.00021307,2]
[338410104,1726608554940,-250.0,0.00021364,2]
[338410105,1726608554962,-250.0,0.0002142,2]
[338410106,1726608554984,-250.0,0.00021477,2]
[338410107,1726608555007,-250.0,0.00021534,2]
[338410108,1726608555029,-250.0,0.0002159,2]
[338410109,1726608555051,-250.0,0.00021647,2]
[338410110,1726608555073,-250.0,0.00021703,2]
[338410111,1726608555094,-166.666666,0.00021918,2]
[338410112,1726608555116,-158.0,0.00022,2]
[338410113,1726608555142,-181.3402681,0.0002204,2]
[338410114,1726608555165,-637.23020802,0.0002207,2]
[338410115,1726608557091,-362.76979198,0.0002207,2]
[338410116,1726608557113,-127.23020802,0.00022192,2]
[338410117,1726608557145,-30.76979198,0.00022192,2]
[338410125,1726608565148,-166.666666,0.00022431,2]
[338410132,1726608590251,29.333334,0.000205,2]
[338410133,1726608590272,133.376666,0.000205,2]
[338410179,1726608632654,-1076.0,0.00022805,2]
[338410180,1726608632663,-166.666666,0.00022944,2]
[338410181,1726608632673,-158.0,0.00023014,2]
[338410182,1726608632682,-166.666666,0.00023456,2]
[338410183,1726608632692,-154.11553568,0.00023743,2]
[338410184,1726608632701,-153.0,0.00023866,2]
[338410185,1726608632711,-166.666666,0.00023969,2]
[338410186,1726608632720,-302.33493269,0.00024,2]
[338410187,1726608632729,-300.0,0.00024071,2]
[338410188,1726608632739,-300.0,0.00024071,2]
[338410189,1726608632748,-1500.0,0.00024073,2]
[338410190,1726608632757,-160.0,0.00024164,2]
[338410191,1726608632767,-302.33493269,0.0002424,2]
[338410192,1726608632776,-302.33493269,0.0002448,2]
[338410193,1726608632785,-166.666666,0.00024482,2]
[338410194,1726608632794,-165.20308892,0.00024658,2]
[338410195,1726608632804,-153.0,0.00024692,2]
[338410196,1726608632813,-153.0,0.00024692,2]
[338410197,1726608632822,-153.0,0.00024692,2]
[338410198,1726608632832,-302.33493269,0.0002472,2]
[338410199,1726608632841,-153.0,0.00024797,2]
[338410200,1726608632850,-1000.0,0.0002486,7]
[338410201,1726608632860,-165.20308892,0.00024877,2]
[338410202,1726608632870,-150.46938434,0.0002488,2]
[338410203,1726608632880,-1000.0,0.0002488,2]
[338410204,1726608632890,-150.46938432,0.00024885,2]
[338410205,1726608632899,-150.46938432,0.0002489,2]
[338410206,1726608632908,-150.46938432,0.00024895,2]
[338410207,1726608632918,-152.91,0.000249,31]
[338410208,1726608632927,-152.91,0.000249,31]
[338410209,1726608632936,-152.91,0.000249,31]
[338410210,1726608632945,-152.91,0.000249,31]
[338410211,1726608632954,-152.91,0.000249,31]
[338410212,1726608632963,-152.91,0.000249,31]
[338410213,1726608632972,-152.91,0.000249,31]
[338410214,1726608632981,-152.91,0.000249,31]
[338410215,1726608632990,-152.91,0.000249,31]
[338410216,1726608632999,-152.91,0.000249,31]
[338410217,1726608633008,-152.91,0.000249,31]
[338410218,1726608633018,-152.91,0.000249,31]
[338410219,1726608633027,-152.91,0.000249,31]
[338410220,1726608633037,-152.91,0.000249,31]
[338410221,1726608633046,-150.46938432,0.000249,2]
[338410222,1726608633055,-907.52506173,0.000249,2]
[338410223,1726608633064,-500.0,0.00024959,2]
[338410224,1726608633073,-500.0,0.00024959,2]
[338410225,1726608633083,-500.0,0.00024959,2]
[338410226,1726608633092,-524.39248088,0.00024959,2]
[338410227,1726608633101,-158.44,0.0002496,3]
[338410228,1726608633110,-475.35,0.0002496,3]
[338410229,1726608633127,-302.33493269,0.0002496,2]
[338410230,1726608633136,-25362.40123991,0.0002496,3]
[338410244,1726608638113,-302.33493264,0.00024,2]
[338410246,1726608638125,-3173.53876009,0.0002496,3]
[338410248,1726608638135,-23779.95,0.0002496,3]
[338410249,1726608638146,-14232.3168076,0.0002496,3]
[338410251,1726608638158,-14759.4077133,0.0002496,3]
[338410253,1726608638167,-41091.75,0.0002497,3]
[338410255,1726608638177,-34243.13,0.0002497,3]
[338410256,1726608638187,-500.0,0.00024973,2]
[338410257,1726608638196,-500.0,0.00024973,2]
[338410258,1726608638206,-500.0,0.00024973,2]
[338410259,1726608638216,-30099.50954915,0.0002498,3]
[338410260,1726608638232,-1688.93066647,0.0002498,3]
[338410261,1726608638243,-301.9143,0.0002498,3]
[338410262,1726608640237,-10606.59590708,0.0002498,3]
[338410263,1726608640247,-3489.48954388,0.0002498,3]
[338410288,1726608646191,-1000.0,0.0002487,2]
[338410289,1726608646200,-3297.68058763,0.0002498,3]
[338410290,1726608646406,545.25806351,0.00019519,2]
[338410328,1726609635114,-294.54228394,0.00019519,2]
[338410329,1726609635136,-774.52275393,0.0002051,30]
[338410330,1726609635157,-166.74,0.000207,2]
[338410331,1726609635179,-150.0,0.00021,2]
[338410332,1726609635200,-166.666666,0.00022746,2]
[338410333,1726609635221,-300.0,0.00023141,2]
[338410334,1726609635246,-300.0,0.00023141,2]
[338410335,1726609635269,-250.0,0.00023142,2]
[338410336,1726609635291,-1484.40118877,0.00023142,2]
[338410337,1726609636150,-549.76734253,0.00023142,2]
[338410338,1726609640587,-252.09785471,0.00023142,2]
[338410339,1726609646088,-857.90303994,0.00023142,2]
[338410342,1726609709561,2939.11,0.00014012,2]
[338410351,1726609812050,168.33,0.00021,2]
[338410361,1726609832521,-300.0,0.00023141,2]
[338410362,1726609832531,-300.0,0.00023141,2]
[338410363,1726609832540,-1541.14062568,0.00023142,2]
[338410364,1726609832552,-4350.92455896,0.00023142,2]
[338410365,1726609832586,-263.23722699,0.00023142,2]
[338410366,1726609832598,-3804.90992624,0.00023142,2]
[338410367,1726609832611,-520.40400976,0.00023142,2]
[338410369,1726609838306,-942.60950052,0.00023142,2]
[338410370,1726609838317,-150.0,0.00023283,2]
[338410371,1726609838326,-479.792,0.00023283,2]
[338410372,1726609838335,-1076.0,0.00023283,2]
[338410373,1726609838345,-166.666666,0.00023366,2]
[338410374,1726609838354,-154.11553567,0.00023743,2]
[338410375,1726609838363,-166.666666,0.00023986,2]
[338410376,1726609838372,-302.30477158,0.00024,2]
[338410377,1726609838382,-153.0,0.00024,2]
[338410378,1726609838391,-153.0,0.00024,2]
[338410379,1726609838400,-208.6901718,0.00024,2]
[338410380,1726609838409,-153.0,0.00024,2]
[338410381,1726609838418,-208.6901718,0.00024,2]
[338410382,1726609838427,-153.0,0.00024178,2]
[338410383,1726609838436,-153.0,0.00024178,2]
[338410384,1726609838445,-302.30477158,0.0002424,2]
[338410385,1726609838455,-453.18570734,0.0002448,2]
[338410386,1726609838464,-166.666666,0.00024606,2]
[338410387,1726609838473,-200.0,0.00024658,2]
[338410388,1726609838483,-208.6901718,0.00024721,2]
[338410389,1726609838492,-153.0,0.00024721,2]
[338410390,1726609838502,-153.0,0.00024721,2]
[338410391,1726609838511,-153.0,0.00024811,2]
[338410392,1726609838521,-1218.49760865,0.0002486,2]
[338410393,1726609838531,-1000.0,0.0002487,2]
[338410394,1726609838542,-152.94,0.000249,31]
[338410395,1726609838552,-152.94,0.000249,31]
[338410396,1726609838564,-152.94,0.000249,31]
[338410397,1726609838574,-152.94,0.000249,31]
[338410399,1726609838583,-152.94,0.000249,31]
[338410402,1726609838595,-152.94,0.000249,31]
[338410404,1726609838607,-152.94,0.000249,31]
[338410406,1726609838618,-816.77255562,0.000249,2]
[338410408,1726609838630,-224.93249787,0.0002495,2]
[338410411,1726609838641,-15468.732192,0.0002495,3]
[338410413,1726609838651,-15468.732192,0.00024951,3]
[338410415,1726609838662,-774.28,0.0002496,3]
[338410417,1726609838671,-30937.4643839,0.0002497,3]
[338410419,1726609838681,-500.0,0.00024973,2]
[338410421,1726609838690,-151.0,0.0002498,7]
[338410423,1726609838699,-151.0,0.0002498,7]
[338410425,1726609838710,-3074.352867,0.0002498,7]
[338410427,1726609838719,-3074.352867,0.0002498,7]
[338410429,1726609838729,-151.0,0.0002498,7]
[338410431,1726609838738,-151.0,0.0002498,7]
[338410433,1726609838747,-151.0,0.0002498,7]
[338410435,1726609838756,-151.0,0.0002498,7]